bitfinex-derivatives/quotes_ETHF0:USTF0_20260117
["timestamp","ask_amount","ask_price","bid_price","bid_amount"]
[1768675936709,0.9913023,3320.8,3319.6,3.076]
[1768675936909,0.9913023,3320.7,3319.6,3.076]
[1768675937110,0.13161278,3321.0,3319.6,3.076]
[1768675937313,0.9913023,3320.9,3319.6,3.076]
[1768675937508,0.9913023,3320.8,3319.6,3.076]
[1768675937708,0.9913023,3320.7,3319.6,3.076]
[1768675937920,0.13161278,3321.0,3319.6,3.076]
[1768675938114,0.99130176,3320.9,3319.6,3.076]
[1768675938314,0.99130176,3320.8,3319.6,3.076]
[1768675938518,0.99130176,3320.7,3319.6,3.076]
[1768675938816,0.13161278,3321.0,3319.6,3.076]
[1768675939015,0.99130129,3320.9,3319.6,3.076]
[1768675939207,0.99130129,3320.8,3319.6,3.076]
[1768675939409,0.99130129,3320.7,3319.6,3.076]
[1768675939719,0.13161278,3321.0,3319.6,3.076]
[1768675939916,0.99130094,3320.9,3319.6,3.076]
[1768675940218,0.13161278,3321.0,3319.6,3.076]
[1768675940219,0.99130094,3320.8,3319.6,3.076]
[1768675940419,0.99130094,3320.7,3319.6,3.076]
[1768675940726,0.13161278,3321.0,3319.6,3.076]
[1768675941018,0.99282947,3320.9,3319.6,3.076]
[1768675941218,0.99282947,3320.8,3319.6,3.076]
[1768675941522,0.99282947,3320.7,3319.9,0.96835136]
[1768675941723,0.13161278,3321.0,3319.6,3.076]
[1768675941911,0.99282945,3320.9,3319.9,0.96835136]
[1768675942112,0.99282945,3320.8,3319.9,0.96835136]
[1768675942312,0.99282945,3320.7,3319.9,0.96835136]
[1768675942605,0.13161278,3321.0,3319.9,0.96835136]
[1768675942811,0.99282958,3320.9,3319.9,0.96835136]
[1768675943011,0.99282958,3320.8,3319.9,0.96835136]
[1768675943211,0.99282958,3320.7,3319.9,0.96835136]
[1768675943411,0.13161278,3321.0,3319.9,0.96835136]
[1768675943611,0.9928299,3320.9,3319.9,0.96835136]
[1768675943811,0.9928299,3320.8,3319.9,0.96835136]
[1768675944022,0.9928299,3320.7,3319.9,0.96835136]
[1768675944216,0.13161278,3321.0,3319.9,0.96835136]
[1768675944419,0.99283017,3320.9,3319.9,0.96835136]
[1768675944620,0.99283017,3320.8,3319.9,0.96835136]
[1768675944821,0.99283017,3320.7,3319.9,0.96835136]
[1768675945115,0.13161278,3321.0,3319.9,0.96835136]
[1768675945309,0.9928303,3320.9,3319.9,0.96835136]
[1768675945516,0.9928303,3320.8,3319.9,0.96835136]
[1768675945824,0.9928303,3320.7,3319.9,0.96835136]
[1768675946125,0.13161278,3321.0,3319.9,0.96835136]
[1768675946424,0.99283081,3320.9,3319.9,0.96835136]
[1768675946726,0.99283081,3320.8,3319.9,0.96835136]
[1768675946926,0.99283081,3320.7,3319.9,0.96835136]
[1768675947125,0.13161278,3321.0,3319.9,0.96835136]
[1768675947328,0.99283146,3320.9,3319.9,0.96835136]
[1768675947524,0.99283146,3320.8,3319.9,0.96835136]
[1768675947726,0.99283146,3320.7,3319.9,0.96835136]
[1768675948029,0.13161278,3321.0,3319.9,0.96835136]
[1768675948328,0.99283238,3320.9,3319.9,0.96835136]
[1768675948526,0.99283238,3320.8,3319.9,0.96835136]
[1768675948822,0.99283238,3320.7,3319.9,0.96835136]
[1768675949020,0.13161278,3321.0,3319.9,0.96835136]
[1768675949222,0.99283322,3320.9,3319.9,0.96835136]
[1768675949421,0.13161278,3321.0,3319.9,0.96835136]
[1768675949422,0.99283322,3320.8,3319.9,0.96835136]
[1768675949618,0.99283322,3320.7,3319.9,0.96835136]
[1768675949816,0.13161278,3321.0,3319.9,0.96835136]
[1768675950016,0.99283426,3320.9,3319.9,0.96835136]
[1768675950229,0.99283426,3320.8,3319.9,0.96835136]
[1768675950429,0.99283426,3320.7,3319.9,0.96835136]
[1768675950620,0.13161278,3321.0,3319.9,0.96835136]
[1768675950821,0.99283447,3320.9,3319.9,0.96835136]
[1768675951021,0.99283447,3320.8,3319.9,0.96835136]
[1768675951223,0.99283447,3320.7,3319.9,0.96835136]
[1768675951421,0.13161278,3321.0,3319.9,0.96835136]
[1768675951622,0.99283576,3320.9,3319.9,0.96835136]
[1768675951823,0.99283576,3320.8,3319.9,0.96835136]
[1768675952023,0.99283576,3320.7,3319.9,0.96835136]
[1768675952323,0.13161278,3321.0,3319.9,0.96835136]
[1768675952523,0.9928373,3320.9,3319.9,0.96835136]
[1768675952729,0.9928373,3320.8,3319.9,0.96835136]
[1768675952925,0.9928373,3320.7,3319.9,0.96835136]
[1768675953125,0.13161278,3321.0,3319.9,0.96835136]
[1768675953432,0.9928373,3320.9,3319.9,0.96835136]
[1768675953622,0.9928373,3320.8,3319.9,0.96835136]
[1768675953824,0.9928373,3320.7,3319.9,0.96835136]
[1768675954023,0.13161278,3321.0,3319.9,0.96835136]
[1768675954321,0.99283924,3320.9,3319.9,0.96835136]
[1768675954523,0.99283924,3320.8,3319.9,0.96835136]
[1768675954725,0.99283924,3320.7,3319.9,0.96835136]
[1768675954924,0.13161278,3321.0,3319.9,0.96835136]
[1768675955127,0.99284018,3320.9,3319.9,0.96835136]
[1768675955327,0.99284018,3320.8,3319.9,0.96835136]
[1768675955527,0.99284018,3320.7,3319.9,0.96835136]
[1768675955728,0.13161278,3321.0,3319.9,0.96835136]
[1768675956028,0.99284125,3320.9,3319.9,0.96835136]
[1768675956329,0.99284125,3320.8,3319.9,0.96835136]
[1768675956626,0.99284125,3320.7,3319.9,0.96835136]
[1768675956826,0.13161278,3321.0,3319.9,0.96835136]
[1768675957029,0.99284263,3320.9,3319.9,0.96835136]
[1768675957238,0.99284263,3320.8,3319.9,0.96835136]
[1768675957434,0.99284263,3320.7,3319.9,0.96835136]
[1768675957636,0.13161278,3321.0,3319.9,0.96835136]
[1768675957835,0.99284422,3320.9,3319.9,0.96835136]
[1768675958035,0.99284422,3320.8,3319.9,0.96835136]
[1768675958238,0.99284422,3320.7,3319.9,0.96835136]
[1768675958533,0.13161278,3321.0,3319.9,0.96835136]
[1768675958736,0.99284644,3320.9,3319.9,0.96835136]
[1768675958940,0.99284644,3320.8,3319.9,0.96835136]
[1768675959137,0.99284644,3320.7,3319.9,0.96835136]
[1768675959338,0.13161278,3321.0,3319.9,0.96835136]
[1768675959643,0.99284884,3320.9,3319.9,0.96835136]
[1768675959840,0.99284884,3320.8,3319.9,0.96835136]
[1768675960143,0.99284884,3320.7,3319.9,0.96835136]
[1768675960335,0.13161278,3321.0,3319.9,0.96835136]
[1768675960536,0.99284821,3320.9,3319.9,0.96835136]
[1768675960738,0.99284821,3320.8,3319.9,0.96835136]
[1768675960938,0.99284821,3320.7,3319.9,0.96835136]
[1768675961131,0.13161278,3321.0,3319.9,0.96835136]
[1768675961428,0.99284821,3320.9,3319.9,0.96835136]
[1768675961626,0.99284821,3320.8,3319.9,0.96835136]
[1768675961827,0.99284821,3320.7,3319.9,0.96835136]
[1768675962042,0.13161278,3321.0,3319.9,0.96835136]
[1768675962243,0.99284767,3320.9,3319.9,0.96835136]
[1768675962437,0.99284767,3320.8,3319.9,0.96835136]
[1768675962633,0.99284767,3320.7,3319.9,0.96835136]
[1768675962834,0.13161278,3321.0,3319.9,0.96835136]
[1768675963035,0.99284729,3320.9,3319.9,0.96835136]
[1768675963233,0.99284729,3320.8,3319.9,0.96835136]
[1768675963534,0.99284729,3320.7,3319.9,0.96835136]
[1768675963832,0.13161278,3321.0,3319.9,0.96835136]
[1768675964032,0.99284693,3320.9,3319.9,0.96835136]
[1768675964331,0.99284693,3320.8,3319.9,0.96835136]
[1768675964524,0.99284693,3320.7,3319.9,0.96835136]
[1768675964729,0.13161278,3321.0,3319.9,0.96835136]
[1768675964931,0.99284683,3320.9,3319.9,0.96835136]
[1768675965151,0.99284683,3320.8,3319.9,0.96835136]
[1768675965332,0.99284683,3320.7,3319.9,0.96835136]
[1768675965531,0.13161278,3321.0,3319.9,0.96835136]
[1768675965731,0.99284673,3320.9,3319.9,0.96835136]
[1768675966030,0.99284673,3320.8,3319.9,0.96835136]
[1768675966227,0.99284673,3320.7,3319.9,0.96835136]
[1768675966433,0.99284673,3320.6,3319.9,0.96835136]
[1768675966641,0.13161278,3321.0,3319.9,0.96835136]
[1768675966836,0.99284648,3320.9,3319.9,0.96835136]
[1768675967036,0.99284648,3320.8,3319.9,0.96835136]
[1768675967240,0.99284648,3320.7,3319.9,0.96835136]
[1768675967539,0.99284648,3320.6,3319.9,0.96835136]
[1768675967739,0.13161278,3321.0,3319.9,0.96835136]
[1768675967941,0.99284622,3320.9,3319.9,0.96835136]
[1768675968147,0.99284622,3320.8,3319.9,0.96835136]
[1768675968447,0.99284622,3320.7,3319.9,0.96835136]
[1768675968745,0.99284622,3320.6,3319.9,0.96835136]
[1768675968942,0.13161278,3321.0,3319.9,0.96835136]
[1768675969139,0.99284602,3320.9,3319.9,0.96835136]
[1768675969338,0.99284602,3320.8,3319.9,0.96835136]
[1768675969536,0.99284602,3320.7,3319.9,0.96835136]
[1768675969738,0.99284602,3320.6,3319.9,0.96835136]
[1768675969934,0.13161278,3321.0,3319.9,0.96835136]
[1768675970235,0.99154503,3320.9,3319.9,0.96835136]
[1768675970436,0.99154503,3320.8,3319.9,0.96835136]
[1768675970636,0.99154503,3320.7,3319.9,0.96835136]
[1768675970934,0.13161278,3321.0,3319.9,0.96835136]
[1768675971134,0.9915451,3320.9,3319.9,0.96835136]
[1768675971341,0.9915451,3320.8,3319.9,0.96835136]
[1768675971542,0.9915451,3320.7,3319.9,0.96835136]
[1768675971743,0.13161278,3321.0,3319.9,0.96835136]
[1768675971944,0.99154512,3320.9,3319.9,0.96835136]
[1768675972140,0.99154512,3320.8,3319.9,0.96835136]
[1768675972341,0.99154512,3320.7,3319.9,0.96835136]
[1768675972541,0.13161278,3321.0,3319.9,0.96835136]
[1768675972841,0.99154514,3320.9,3319.9,0.96835136]
[1768675973148,0.99154514,3320.8,3319.9,0.96835136]
[1768675973450,0.99154514,3320.7,3319.9,0.96835136]
[1768675973645,0.13161278,3321.0,3319.9,0.96835136]
[1768675973846,0.99154514,3320.9,3319.9,0.96835136]
[1768675974144,0.99154514,3320.8,3319.9,0.96835136]
[1768675974346,0.99154514,3320.7,3319.9,0.96835136]
[1768675974550,0.13161278,3321.0,3319.9,0.96835136]
[1768675974846,0.99154515,3320.9,3319.9,0.96835136]
[1768675975147,0.99154515,3320.8,3319.9,0.96835136]
[1768675975347,0.99154515,3320.7,3319.9,0.96835136]
[1768675975547,0.13161278,3321.0,3319.9,0.96835136]
[1768675975751,0.99154515,3320.9,3319.9,0.96835136]
[1768675975950,0.99154515,3320.8,3319.9,0.96835136]
[1768675976151,0.99154515,3320.7,3319.9,0.96835136]
[1768675976350,0.13161278,3321.0,3319.9,0.96835136]
[1768675976549,0.99154495,3320.9,3319.9,0.96835136]
[1768675976741,0.99154495,3320.8,3319.9,0.96835136]
[1768675976942,0.99154493,3320.7,3319.9,0.96835136]
[1768675977251,0.13161278,3321.0,3319.9,0.96835136]
[1768675977448,0.99154473,3320.9,3319.9,0.96835136]
[1768675977643,0.99154473,3320.8,3319.9,0.96835136]
[1768675977849,0.99154473,3320.7,3319.9,0.96835136]
[1768675978048,0.13161278,3321.0,3319.9,0.96835136]
[1768675978242,0.99154483,3320.9,3319.9,0.96835136]
[1768675978444,0.99154483,3320.8,3319.9,0.96835136]
[1768675978643,0.99154483,3320.7,3319.9,0.96835136]
[1768675978847,0.13161278,3321.0,3319.9,0.96835136]
[1768675979048,0.99154452,3320.9,3319.9,0.96835136]
[1768675979247,0.99154452,3320.8,3319.9,0.96835136]
[1768675979444,0.99154452,3320.7,3319.9,0.96835136]
[1768675979643,0.13161278,3321.0,3319.9,0.96835136]
[1768675979844,0.99154429,3320.9,3319.9,0.96835136]
[1768675980144,0.99154429,3320.8,3319.9,0.96835136]
[1768675980344,0.99154429,3320.7,3319.9,0.96835136]
[1768675980545,0.13161278,3321.0,3319.9,0.96835136]
[1768675980845,0.99154426,3320.9,3319.9,0.96835136]
[1768675981145,0.99154426,3320.8,3319.9,0.96835136]
[1768675981345,0.99154426,3320.7,3319.9,0.96835136]
[1768675981546,0.13161278,3321.0,3319.9,0.96835136]
[1768675981746,0.99154411,3320.9,3319.9,0.96835136]
[1768675981947,0.99154411,3320.8,3319.9,0.96835136]
[1768675982155,0.99154411,3320.7,3319.9,0.96835136]
[1768675982468,0.13161278,3321.0,3319.9,0.96835136]
[1768675982646,0.99154406,3320.9,3319.8,0.96835136]
[1768675982940,0.99154406,3320.8,3319.8,0.96835136]
[1768675983144,0.99154406,3320.7,3319.8,0.96835136]
[1768675983345,0.13161278,3321.0,3319.8,0.96835136]
[1768675983646,0.99154403,3320.9,3319.8,0.96835136]
[1768675983945,0.99154403,3320.8,3319.8,0.96835136]
[1768675984145,0.99154403,3320.7,3319.8,0.96835136]
[1768675984342,0.13161278,3321.0,3319.8,0.96835136]
[1768675984542,0.99154411,3320.9,3319.8,0.96835136]
[1768675984757,0.99154411,3320.8,3319.8,0.96835136]
[1768675984947,0.99154411,3320.7,3319.8,0.96835136]
[1768675985149,0.13161278,3321.0,3319.8,0.96835136]
[1768675985350,0.99154408,3320.9,3319.8,0.96835136]
[1768675985553,0.99154408,3320.8,3319.8,0.96835136]
[1768675985749,0.99154408,3320.7,3319.8,0.96835136]
[1768675985952,0.13161278,3321.0,3319.8,0.96835136]
[1768675986249,0.9915442,3320.9,3319.8,0.96835136]
[1768675986549,0.9915442,3320.8,3319.8,0.96835136]
[1768675986844,0.9915442,3320.7,3319.8,0.96835136]
[1768675987048,0.13161278,3321.0,3319.8,0.96835136]
[1768675987247,0.99154441,3320.9,3319.8,0.96835136]
[1768675987459,0.99154441,3320.8,3319.8,0.96835136]
[1768675987659,0.99154441,3320.7,3319.8,0.96835136]
[1768675987859,0.13161278,3321.0,3319.8,0.96835136]
[1768675988163,0.99154479,3320.9,3319.8,0.96835136]
[1768675988355,0.99154479,3320.8,3319.8,0.96835136]
[1768675988555,0.99154479,3320.7,3319.8,0.96835136]
[1768675988755,0.13161278,3321.0,3319.8,0.96835136]
[1768675988956,0.99154502,3320.9,3319.8,0.96835136]
[1768675989155,0.99154502,3320.8,3319.8,0.96835136]
[1768675989355,0.99154502,3320.7,3319.8,0.96835136]
[1768675989556,0.13161278,3321.0,3319.8,0.96835136]
[1768675989756,0.99154487,3320.9,3319.8,0.96835136]
[1768675989963,0.99154487,3320.8,3319.8,0.96835136]
[1768675990157,0.99154487,3320.7,3319.8,0.96835136]
[1768675990359,0.13161278,3321.0,3319.8,0.96835136]
[1768675990661,0.99154472,3320.9,3319.8,0.96835136]
[1768675990958,0.99154472,3320.8,3319.8,0.96835136]
[1768675991158,0.99154472,3320.7,3319.8,0.96835136]
[1768675991359,0.13161278,3321.0,3319.8,0.96835136]
[1768675991559,0.99154442,3320.9,3319.8,0.96835136]
[1768675991760,0.99154442,3320.8,3319.8,0.96835136]
[1768675991961,0.99154442,3320.7,3319.8,0.96835136]
[1768675992165,0.13161278,3321.0,3319.8,0.96835136]
[1768675992361,0.99154448,3320.9,3319.8,0.96835136]
[1768675992562,0.99154448,3320.8,3319.8,0.96835136]
[1768675992763,0.99154448,3320.7,3319.8,0.96835136]
[1768675992959,0.13161278,3321.0,3319.8,0.96835136]
[1768675993160,0.99154432,3320.9,3319.8,0.96835136]
[1768675993360,0.99154432,3320.8,3319.8,0.96835136]
[1768675993561,0.99154432,3320.7,3319.8,0.96835136]
[1768675993754,0.13161278,3321.0,3319.8,0.96835136]
[1768675994055,0.99154424,3320.9,3319.8,0.96835136]
[1768675994254,0.99154424,3320.8,3319.8,0.96835136]
[1768675994464,0.99154424,3320.7,3319.8,0.96835136]
[1768675994658,0.13161278,3321.0,3319.8,0.96835136]
[1768675994859,0.99154431,3320.9,3319.8,0.96835136]
[1768675995157,0.99154431,3320.8,3319.8,0.96835136]
[1768675995458,0.99154431,3320.7,3319.8,0.96835136]
[1768675995758,0.13161278,3321.0,3319.8,0.96835136]
[1768675995957,0.99154418,3320.9,3319.8,0.96835136]
[1768675996160,0.99154418,3320.8,3319.8,0.96835136]
[1768675996456,0.13161278,3321.0,3319.8,0.96835136]
[1768675996457,0.99154418,3320.7,3319.8,0.96835136]
[1768675996654,0.13161278,3321.0,3319.8,0.96835136]
[1768675996865,0.99154394,3320.9,3319.8,0.96835136]
[1768675997065,0.99154394,3320.8,3319.8,0.96835136]
[1768675997257,0.99154394,3320.7,3319.8,0.96835136]
[1768675997468,0.13161278,3321.0,3319.8,0.96835136]
[1768675997658,0.99154382,3320.9,3319.8,0.96835136]
[1768675997851,0.99154382,3320.8,3319.8,0.96835136]
[1768675998057,0.99154382,3320.7,3319.8,0.96835136]
[1768675998357,0.13161278,3321.0,3319.8,0.96835136]
[1768675998655,0.99154372,3320.9,3319.8,0.96835136]
[1768675998855,0.99154372,3320.8,3319.8,0.96835136]
[1768675999056,0.99154372,3320.7,3319.8,0.96835136]
[1768675999257,0.13161278,3321.0,3319.8,0.96835136]
[1768675999456,0.99154362,3320.9,3319.8,0.96835136]
[1768675999656,0.99154362,3320.8,3319.8,0.96835136]
[1768675999857,0.99154362,3320.7,3319.8,0.96835136]
[1768676000152,0.13161278,3321.0,3319.8,0.96835136]
[1768676000356,0.99117908,3320.9,3319.8,0.96835136]
[1768676000560,0.99117908,3320.8,3319.8,0.96835136]
[1768676000766,0.99117908,3320.7,3319.8,0.96835136]
[1768676000967,0.13161278,3321.0,3319.8,0.96835136]
[1768676001162,0.99117894,3320.9,3319.8,0.96835136]
[1768676001360,0.99117894,3320.8,3319.6,3.076]
[1768676001560,0.99117894,3320.7,3319.6,3.076]
[1768676001762,0.13161278,3321.0,3319.6,3.076]
[1768676001961,0.99117921,3320.9,3319.6,3.076]
[1768676002162,0.99117921,3320.8,3319.6,3.076]
[1768676002363,0.99117921,3320.7,3319.6,3.076]
[1768676002567,0.13161278,3321.0,3319.6,3.076]
[1768676002766,0.99117974,3320.9,3319.6,3.076]
[1768676003066,0.99117974,3320.8,3319.6,3.076]
[1768676003257,0.99117974,3320.7,3319.6,3.076]
[1768676003459,0.13161278,3321.0,3319.6,3.076]
[1768676003758,0.99118006,3320.9,3319.6,3.076]
[1768676003959,0.99118006,3320.8,3319.6,3.076]
[1768676004259,0.99118006,3320.7,3319.6,3.076]
[1768676004455,0.13161278,3321.0,3319.6,3.076]
[1768676004660,0.99118039,3320.9,3319.6,3.076]
[1768676004860,0.99118039,3320.8,3319.6,3.076]
[1768676005063,0.99118039,3320.7,3319.6,3.076]
[1768676005263,0.13161278,3321.0,3319.6,3.076]
[1768676005464,0.99118073,3320.9,3319.6,3.076]
[1768676005665,0.99118073,3320.8,3319.6,3.076]
[1768676005865,0.99118073,3320.7,3319.6,3.076]
[1768676006067,0.13161278,3321.0,3319.6,3.076]
[1768676006266,0.99118064,3320.9,3319.6,3.076]
[1768676006467,0.99118064,3320.8,3319.6,3.076]
[1768676006673,0.99118064,3320.7,3319.6,3.076]
[1768676006863,0.13161278,3321.0,3319.6,3.076]
[1768676007064,0.99118106,3320.9,3319.6,3.076]
[1768676007266,0.99118106,3320.8,3319.6,3.076]
[1768676007471,0.99118106,3320.7,3319.6,3.076]
[1768676007771,0.13161278,3321.0,3319.6,3.076]
[1768676007971,0.99118109,3320.9,3319.6,3.076]
[1768676008173,0.99118109,3320.8,3319.6,3.076]
[1768676008372,0.99118109,3320.7,3319.6,3.076]
[1768676008574,0.13161278,3321.0,3319.6,3.076]
[1768676008873,0.99118111,3320.9,3319.6,3.076]
[1768676009072,0.99118111,3320.8,3319.6,3.076]
[1768676009369,0.99118111,3320.7,3319.6,3.076]
[1768676009572,0.13161278,3321.0,3319.6,3.076]
[1768676009773,0.99118114,3320.9,3319.6,3.076]
[1768676010076,0.99118114,3320.8,3319.6,3.076]
[1768676010374,0.99118114,3320.7,3319.6,3.076]
[1768676010573,0.13161278,3321.0,3319.6,3.076]
[1768676010771,0.99118126,3320.9,3319.6,3.076]
[1768676011074,0.99118126,3320.8,3319.6,3.076]
[1768676011271,0.99118126,3320.7,3319.6,3.076]
[1768676011471,0.13161278,3321.0,3319.6,3.076]
[1768676011672,0.99118129,3320.9,3319.6,3.076]
[1768676011872,0.99118129,3320.8,3319.6,3.076]
[1768676012072,0.99118129,3320.7,3319.6,3.076]
[1768676012274,0.13161278,3321.0,3319.6,3.076]
[1768676012482,0.99118136,3320.9,3319.6,3.076]
[1768676012676,0.99118136,3320.8,3319.6,3.076]
[1768676012878,0.99118136,3320.7,3319.6,3.076]
[1768676013077,0.13161278,3321.0,3319.6,3.076]
[1768676013272,0.99118145,3320.9,3319.6,3.076]
[1768676013472,0.99118145,3320.8,3319.6,3.076]
[1768676013667,0.99118145,3320.7,3319.6,3.076]
[1768676013873,0.13161278,3321.0,3319.6,3.076]
[1768676014072,0.99119533,3320.9,3319.6,3.076]
[1768676014272,0.99119533,3320.8,3319.6,3.076]
[1768676014474,0.99119533,3320.7,3319.6,3.076]
[1768676014674,0.13161278,3321.0,3319.6,3.076]
[1768676014882,0.99117282,3320.9,3319.6,3.076]
[1768676015075,0.99117282,3320.8,3319.6,3.076]
[1768676015277,0.99117282,3320.7,3319.6,3.076]
[1768676015476,0.13161278,3321.0,3319.6,3.076]
[1768676015678,0.99116008,3320.9,3319.6,3.076]
[1768676015880,0.99116008,3320.8,3319.6,3.076]
[1768676016077,0.13161278,3321.0,3319.6,3.076]
[1768676016078,0.99116008,3320.7,3319.6,3.076]
[1768676016392,0.99115077,3320.6,3319.6,3.076]
[1768676016574,0.13161278,3321.0,3319.6,3.076]
[1768676016778,0.99115076,3320.9,3319.6,3.076]
[1768676017072,0.99115076,3320.8,3319.6,3.076]
[1768676017272,0.99115076,3320.7,3319.6,3.076]
[1768676017473,0.99115076,3320.6,3319.6,3.076]
[1768676017677,0.13161278,3321.0,3319.6,3.076]
[1768676017888,0.99114083,3320.9,3319.6,3.076]
[1768676018085,0.99114083,3320.8,3319.6,3.076]
[1768676018278,0.99114083,3320.7,3319.5,3.183]
[1768676018477,0.99114083,3320.6,3319.5,3.183]
[1768676018780,0.13161278,3321.0,3319.5,3.183]
[1768676019087,1.13364963,3320.9,3319.5,3.183]
[1768676019276,0.9911327,3320.8,3319.5,3.183]
[1768676019472,0.9911327,3320.7,3319.5,3.183]
[1768676019677,0.9911327,3320.6,3319.5,3.183]
[1768676019878,0.14251693,3320.9,3319.5,3.183]
[1768676020178,0.99112515,3320.8,3319.5,3.183]
[1768676020377,0.99112515,3320.7,3319.5,3.183]
[1768676020578,0.99112515,3320.6,3319.5,3.183]
[1768676020776,0.14251693,3320.9,3319.5,3.183]
[1768676020976,0.99111903,3320.8,3319.5,3.183]
[1768676021284,0.99111903,3320.7,3319.5,3.186]
[1768676021480,0.99111903,3320.6,3319.5,3.186]
[1768676021787,0.14251693,3320.9,3319.5,3.186]
[1768676021988,0.99111475,3320.8,3319.5,3.186]
[1768676022182,0.99111475,3320.7,3319.5,3.186]
[1768676022383,0.99111475,3320.6,3319.5,3.186]
[1768676022583,0.14251693,3320.9,3319.5,3.186]
[1768676022782,0.99110774,3320.8,3319.5,3.186]
[1768676022984,0.99110774,3320.7,3319.5,3.186]
[1768676023184,0.99110774,3320.6,3319.5,3.186]
[1768676023482,0.14251693,3320.9,3319.5,3.186]
[1768676023678,0.99110215,3320.8,3319.5,3.186]
[1768676023882,0.99110215,3320.7,3319.5,3.186]
[1768676024078,0.99110215,3320.6,3319.5,3.186]
[1768676024278,0.14251693,3320.9,3319.5,3.186]
[1768676024488,0.99109766,3320.8,3319.5,3.186]
[1768676024680,0.99109766,3320.7,3319.5,3.186]
[1768676024880,0.99109766,3320.6,3319.5,3.186]
[1768676025074,0.14251693,3320.9,3319.5,3.186]
[1768676025278,0.14251693,3320.7,3319.3,0.36829662]
[1768676025478,0.99109368,3320.6,3319.3,0.36829662]
[1768676029289,0.14251693,3320.7,3319.3,0.36829662]
[1768676030087,0.99261149,3320.6,3319.3,0.36829662]
[1768676030287,0.14251693,3320.7,3319.3,0.36829662]
[1768676030488,0.99259677,3320.6,3319.3,0.36829662]
[1768676030684,0.14251693,3320.7,3319.3,0.36829662]
[1768676030983,0.99259676,3320.6,3319.3,0.36829662]
[1768676031184,0.14251693,3320.7,3319.3,0.36829662]
[1768676031490,0.99258502,3320.6,3319.3,0.36829662]
[1768676031688,0.14251693,3320.7,3319.3,0.36829662]
[1768676031988,0.99258501,3320.6,3319.3,0.36829662]
[1768676032189,0.14251693,3320.7,3319.3,0.36829662]
[1768676032390,0.99257586,3320.6,3319.3,0.36829662]
[1768676032589,0.14251693,3320.7,3319.3,0.36829662]
[1768676032792,0.99257588,3320.6,3319.3,0.36829662]
[1768676032994,0.14251693,3320.7,3319.3,0.36829662]
[1768676033184,0.99257588,3320.6,3319.3,0.36829662]
[1768676033383,0.14251693,3320.7,3319.3,0.36829662]
[1768676033695,0.99256843,3320.6,3319.3,0.36829662]
[1768676033894,0.14251693,3320.7,3319.3,0.36829662]
[1768676038686,0.99256213,3320.6,3319.3,0.36829662]
[1768676038882,0.14251693,3320.7,3319.3,0.36829662]
[1768676039195,0.14221682,3320.5,3319.3,0.36829662]
[1768676046309,0.14221682,3320.5,3319.2,0.00299815]
[1768676048003,0.14221682,3320.3,3319.2,0.00299815]
[1768676061426,0.14221682,3320.3,3319.2,0.97179026]
[1768676075528,0.99152851,3320.2,3319.2,0.97179026]
[1768676075728,0.00370088,3320.2,3319.2,0.97179026]
[1768676078739,0.99227683,3320.1,3319.2,0.97179026]
[1768676078941,0.00370088,3320.2,3319.2,0.97179026]
[1768676079240,0.99227701,3320.1,3319.2,0.97179026]
[1768676079442,0.00370088,3320.2,3319.2,0.97179026]
[1768676079644,0.99221615,3320.1,3319.2,0.97179026]
[1768676079935,0.00370088,3320.2,3319.2,0.97179026]
[1768676080138,0.99221615,3320.1,3319.2,0.97179026]
[1768676080338,0.00370088,3320.2,3319.2,0.97179026]
[1768676080534,0.99217477,3320.1,3319.2,0.97179026]
[1768676080735,0.00370088,3320.2,3319.2,0.97179026]
[1768676080943,0.99217477,3320.1,3319.2,0.97179026]
[1768676081141,0.00370088,3320.2,3319.2,0.97179026]
[1768676081332,0.99217477,3320.1,3319.2,0.97179026]
[1768676081534,0.00370088,3320.2,3319.2,0.97179026]
[1768676081734,0.99214298,3320.1,3319.2,0.97179026]
[1768676082036,0.00370088,3320.2,3319.2,0.97179026]
[1768676082235,0.99214298,3320.1,3319.2,0.97179026]
[1768676082434,0.00370088,3320.2,3319.2,0.97179026]
[1768676090154,0.00370088,3320.2,3319.5,0.96879211]
[1768676094566,0.13987275,3321.1,3320.0,1.93758422]
[1768676094771,0.9925039,3321.0,3320.4,0.96879211]
[1768676094966,0.9925039,3320.9,3320.2,0.96879211]
[1768676095165,0.9925039,3320.8,3320.2,0.96879211]
[1768676095366,0.50716469,3321.1,3320.2,0.96879211]
[1768676095569,0.99182432,3321.0,3320.2,0.96879211]
[1768676095768,0.99182432,3320.9,3320.2,0.96879211]
[1768676095966,0.50982902,3321.1,3320.4,0.96879211]
[1768676096164,0.9918202,3321.0,3320.3,0.96879211]
[1768676096466,0.9918202,3320.9,3320.3,0.96879211]
[1768676096771,0.50982902,3321.1,3320.3,0.96879211]
[1768676097069,0.99142892,3321.0,3320.3,0.96879211]
[1768676097270,0.99142892,3320.9,3320.3,0.96879211]
[1768676097471,0.50982902,3321.1,3320.3,0.96879211]
[1768676097657,0.9911436,3321.0,3320.3,0.96879211]
[1768676097861,0.9911436,3320.9,3320.3,0.96879211]
[1768676098161,0.50982902,3321.1,3320.3,0.96879211]
[1768676098362,0.99114388,3321.0,3320.3,0.96879211]
[1768676098569,0.50982902,3321.1,3320.3,0.96879211]
[1768676098756,0.99091624,3321.0,3320.3,0.96879211]
[1768676098961,0.50982902,3321.1,3320.3,0.96879211]
[1768676099161,0.99091627,3321.0,3320.3,0.96879211]
[1768676099369,0.50982902,3321.1,3320.3,0.96879211]
[1768676099669,0.9907276,3321.0,3320.3,0.96879211]
[1768676099869,0.50982902,3321.1,3320.3,0.96879211]
[1768676100069,0.9907276,3321.0,3320.3,0.96879211]
[1768676100270,0.50982902,3321.1,3320.3,0.96879211]
[1768676100471,0.99069298,3321.0,3320.3,0.96879211]
[1768676100671,0.50982902,3321.1,3320.3,0.96879211]
[1768676100875,0.9906872,3321.0,3320.3,0.96879211]
[1768676101073,0.50982902,3321.1,3320.3,0.96879211]
[1768676101264,0.9906872,3321.0,3320.3,0.96879211]
[1768676101464,0.50982902,3321.1,3320.3,0.96879211]
[1768676101665,0.99052117,3321.0,3320.3,0.96879211]
[1768676101867,0.50982902,3321.1,3320.3,0.96879211]
[1768676102163,0.99052117,3321.0,3320.3,0.96879211]
[1768676102367,0.50982902,3321.1,3320.3,0.96879211]
[1768676102568,0.986501,3321.0,3320.3,0.96879211]
[1768676102770,0.50982902,3321.1,3320.3,0.96879211]
[1768676102970,0.986501,3321.0,3320.5,0.96879211]
[1768676103169,0.00266433,3321.1,3320.5,0.96879211]
[1768676103571,1.86222023,3321.6,3320.7,0.96879211]
[1768676103770,0.9862549,3321.5,3320.7,0.96879211]
[1768676103969,1.86222023,3321.6,3320.7,0.96879211]
[1768676104169,0.98625446,3321.5,3320.5,0.96879211]